Cogmind - Beta 11 *** ADVENTURER MODE // 2022.03.22 @ 09:32:08 Player: Owlsley Result: Destroyed 0B10! Performance ------------- Evolutions (9) 4500 Regions Visited (24) 4800 Robots Destroyed (323) 1615 Value Destroyed (16253) 16253 Prototype IDs (55) 1100 Alien Tech Used (9) 1800 Bonus (20454) 20454 TOTAL SCORE: 50522 Bonus ------- High Alert Combat Kills 457 Follower Combat Kills 974 Network Hubs Disabled 200 Met Data Miner 300 Met Zhirov 300 Met R17 at Cetus 500 Used Core Reset Matrix 3000 Met Sigix 2000 Escaped with Sigix 10000 Win 3000 Friendly Fire -277 Cogmind --------- Core Integrity 1196/1600 Matter 265/300 Energy 3/100 System Corruption 0% Temperature Cool (12) Movement Walking (116) Location Tau Ceti IV Orbit Parts ------- > --- POWER (2) -------- Matter Drive > --- PROPULSION (6) --- Myomer Leg Myomer Leg Myomer Leg Biometal Leg Biometal Leg Centrium Leg > --- UTILITY (14) ----- Advanced Heat Sink High-capacity Storage Unit Experimental Optical Array Experimental Targeting Computer Advanced Target Analyzer Improved Weapon Cycler Femtoactuators Phase Armor Improved Focal Shield Advanced Corruption Screen > --- WEAPON (3) ------- Enhanced Quantum Rifle Sigix Broadsword > --- INVENTORY (20) --- Light Quantum Reactor Myomer Leg Myomer Leg Improved Matter Compressor (300) System Restoration Module Core Cannon Hardcell Cannon Sigix Terminator (1) Core Stripper Sigix Containment Pod Sigix Containment Pod Peak State ------------ > --- POWER ------------ Micro Antimatter Reactor Light Quantum Reactor > --- PROPULSION ------- Flexi-carbon Leg Myomer Leg Myomer Leg Biometal Leg Biometal Leg High-density Centrium Leg > --- UTILITY ---------- Advanced Heat Sink Advanced Heat Sink High-capacity Storage Unit Experimental Optical Array Experimental Targeting Computer Advanced Target Analyzer Improved Weapon Cycler Femtoactuators Advanced Phase Shifter Medium Reflective Plating Phase Armor Improved Focal Shield Advanced Corruption Screen > --- WEAPON ----------- Enhanced Quantum Rifle Sigix Broadsword > --- INVENTORY -------- Light Quantum Reactor Matter Drive Myomer Leg Myomer Leg Improved Matter Compressor System Restoration Module Core Reset Matrix Subatomic Replicator Phase Gun Phase Gun Core Cannon Sigix Terminator Core Stripper Sigix Containment Pod [Rating: 223] Favorites ----------- Power Micro Antimatter Reactor Engine Improved Ion Engine Power Core Light Neutrino Core Reactor Micro Antimatter Reactor Propulsion Flexi-carbon Leg Treads Biometal Medium Treads Leg Flexi-carbon Leg Utility Armor Integrity Analyzer Device Advanced Heat Sink Storage Large Storage Unit Processor Armor Integrity Analyzer Hackware Advanced Hacking Suite Protection Centrium Medium Armor Plating Artifact Phase Armor Weapon Advanced KE Penetrator Energy Gun Phase Gun Energy Cannon Nova Cannon Ballistic Gun Advanced KE Penetrator Ballistic Cannon Flak Cannon Impact Weapon Core Stripper Slashing Weapon Sigix Broadsword Piercing Weapon Lance Special Melee Weapon Dirty Datajack Build | -11 -10 -10 -9 -8 -7 -7 -7 -7 -6 -6 -6 -6 -6 -6 -5 -5 -5 -5 -4 -4 -3 -3 -2 -1 ------- Run | Scr Mat Min Mat Mat Fac Low Low Dat Pro Fac Ext Cet Arc Hub Fac Upp Upp Zhi Pro Fac Res Qua Res Acc Slots Evolved 18 | . . . 2 2 2 . . . . 2 . . . . 2 . . . . 2 2 . 2 2 Power 1 | . . . . . . . . . . . . . . . . . . . . 1 . . . . Propulsion 4 | . . . 1 . . . . . . 1 . . . . . . . . . . 2 . . . Utility 12 | . . . 1 2 2 . . . . 1 . . . . 1 . . . . 1 . . 2 2 Weapon 1 | . . . . . . . . . . . . . . . 1 . . . . . . . . . Parts Attached 323 | . 5 2 11 13 4 3 4 . 9 16 22 4 . 16 8 4 5 5 8 33 49 52 21 29 Power 27 | . 1 . 1 . . . . . . 1 1 . . . 1 . . 1 . 6 5 5 2 3 Engine 4 | . 1 . 1 . . . . . . 1 1 . . . . . . . . . . . . . Core 8 | . . . . . . . . . . . . . . . 1 . . . . 6 1 . . . Reactor 15 | . . . . . . . . . . . . . . . . . . 1 . . 4 5 2 3 Propulsion 75 | . . 1 4 3 . 1 1 . 3 2 6 . . 7 1 1 . . 3 7 11 10 7 7 Treads 3 | . . 1 1 . . . . . . . . . . . . . . . . . . 1 . . Leg 72 | . . . 3 3 . 1 1 . 3 2 6 . . 7 1 1 . . 3 7 11 9 7 7 Wheel . | . . . . . . . . . . . . . . . . . . . . . . . . . Hover . | . . . . . . . . . . . . . . . . . . . . . . . . . Flight . | . . . . . . . . . . . . . . . . . . . . . . . . . Utility 123 | . 3 . 2 9 4 2 2 . 1 7 9 2 . 3 5 3 2 4 1 13 14 20 7 10 Device 73 | . . . . 4 3 2 2 . . 4 5 . . 2 4 3 1 1 1 8 9 15 4 5 Storage 5 | . 1 . 1 . . . . . . . . . . . . . . 2 . . 1 . . . Processor 21 | . 1 . . 2 1 . . . . 1 3 . . . 1 . 1 . . 4 2 1 2 2 Hackware 4 | . . . 1 . . . . . . . . . . . . . . . . . 1 . . 2 Protection 17 | . 1 . . 3 . . . . 1 2 1 2 . 1 . . . 1 . 1 1 2 . 1 Artifact 3 | . . . . . . . . . . . . . . . . . . . . . . 2 1 . Weapon 98 | . 1 1 4 1 . . 1 . 5 6 6 2 . 6 1 . 3 . 4 7 19 17 5 9 Energy Gun 31 | . . . 1 . . . . . 2 1 . 2 . 1 1 . 1 . 3 . 5 3 5 6 Energy Cannon 13 | . . 1 . . . . . . . . 2 . . . . . . . . 3 3 4 . . Ballistic Gun 41 | . 1 . 3 1 . . . . 1 4 3 . . 5 . . 2 . 1 4 8 8 . . Ballistic Cannon 4 | . . . . . . . 1 . 2 1 . . . . . . . . . . . . . . Launcher . | . . . . . . . . . . . . . . . . . . . . . . . . . Special Weapon . | . . . . . . . . . . . . . . . . . . . . . . . . . Impact Weapon 1 | . . . . . . . . . . . . . . . . . . . . . . 1 . . Slashing Weapon 4 | . . . . . . . . . . . 1 . . . . . . . . . . . . 3 Piercing Weapon 3 | . . . . . . . . . . . . . . . . . . . . . 2 1 . . Special Melee Weapon 1 | . . . . . . . . . . . . . . . . . . . . . 1 . . . Unidentified Prototypes 35 | . . . 2 . . . . . . 1 1 2 . 2 1 . . 5 . 1 2 14 2 2 Corrupted Parts 9 | . . . . . . . . . . . . . . 5 . . . . . 2 . 2 . . System Corruption 44 | . . . . . . . . . . . . . . 20 . . . . . 11 . 13 . . Parts Lost 80 | . . 4 . 2 . 1 3 . 5 1 2 . . 1 2 1 3 . 7 14 9 12 10 3 Power 5 | . . 1 . . . . . . 1 . . . . . . . . . . . 1 1 1 . Propulsion 30 | . . 2 . . . . 1 . 3 . 1 . . 1 1 1 . . 3 4 4 6 3 . Utility 30 | . . . . 2 . 1 1 . 1 1 1 . . . 1 . 3 . 2 4 3 3 4 3 Weapon 15 | . . 1 . . . . 1 . . . . . . . . . . . 2 6 1 2 2 . Highest Loss Streak 9 | . . 4 . 1 . 1 2 . 3 1 2 . . 1 1 1 2 . 5 6 4 6 9 1 To Critical Strikes 8 | . . . . . . . . . . . . . . . . . . . 1 . 1 6 . . Average Slot Usage (%) 96 | . 98 92 92 97 100 99 99 100 92 93 99 100 100 99 99 99 97 96 97 97 98 95 89 95 Engine 2 | . 14 10 8 9 7 7 7 7 1 2 6 6 6 6 1 . . . . . . . . . Core 1 | . . . . . . . . . . . . . . . 3 5 5 3 . 4 . . . . Reactor 3 | . . . . . . . . . . . . . . . . . . 1 5 5 8 8 7 7 Leg 24 | . 28 21 31 27 23 23 23 23 22 25 25 26 26 26 22 23 23 23 22 20 27 23 24 24 Device 16 | . . . . 7 15 17 23 23 16 15 11 13 13 13 17 22 22 17 17 17 17 15 19 21 Storage 6 | . 14 14 11 9 7 7 7 7 7 6 6 6 6 6 5 5 5 6 11 10 5 4 4 4 Processor 20 | . 12 14 11 17 23 23 23 23 23 20 23 26 26 26 22 17 20 21 17 20 19 22 19 19 Protection 3 | . . . . 7 7 5 . . 5 8 10 6 6 5 5 5 . 1 3 1 . 2 . 2 Energy Gun 4 | . . . . . . . . . 10 2 2 7 13 8 5 5 5 5 5 2 2 1 7 11 Ballistic Gun 8 | . 28 21 16 18 15 15 8 7 . 5 8 4 . 4 11 11 11 11 11 10 8 7 2 . Naked Turns . | . . . . . . . . . . . . . . . . . . . . . . . . . Heaviest Build 137 | 12 21 21 33 41 46 43 43 43 46 71 78 55 54 56 62 62 62 67 70 84 101 115 126 137 Greatest Support 168 | 20 20 20 33 56 56 54 54 51 51 86 91 87 87 87 84 84 84 84 84 103 130 157 168 163 Greatest Overweight (x) 2 | . 1 1 1 1 . . . . 1 1 1 . . . . . . . . 1 . 2 . . Average Overweight (x) . | . . . . . . . . . . . . . . . . . . . . . . . . . Largest Inventory Capacity 20 | . 10 10 15 15 15 15 15 15 15 15 15 15 15 15 15 15 15 15 15 15 20 20 20 20 Average Capacity 15 | . 9 10 14 15 15 15 15 15 15 15 15 15 15 15 15 15 15 15 15 15 12 20 20 20 Most Carried 20 | . 10 10 15 15 15 15 14 12 15 15 15 15 15 15 15 15 15 15 15 15 20 20 20 20 Average Carried 15 | . 8 9 13 14 13 14 12 12 13 14 14 14 15 14 14 14 14 14 13 14 10 19 19 19 Final Capacity 20 | 8 10 10 15 15 15 15 15 15 15 15 15 15 15 15 15 15 15 15 15 15 20 20 20 20 Final Carried 20 | 6 10 8 15 15 15 14 12 12 15 15 15 15 15 15 15 15 15 15 11 11 20 20 20 16 Class Distribution -------------------- 51% | Scavenger-Gunner 19% | Mutant 16% | Scavenger-Mutant 7% | Skirmisher Dominant Class ---------------- Mutant | -10/Materials Mutant | -10/Mines Hacker-Mutant | -9/Materials Mutant | -8/Materials Skirmisher | -7/Factory Skirmisher | -7/Lower Caves Mutant | -7/Lower Caves Mutant | -7/Data Miner Mutant | -6/Proximity Caves Mutant | -6/Factory Scavenger-Mutant | -6/Extension Scavenger-Mutant | -6/Cetus Scavenger-Mutant | -6/Archives Scavenger-Mutant | -6/Hub_04(d) Scavenger-Gunner | -5/Factory Scavenger-Gunner | -5/Upper Caves Scavenger-Gunner | -5/Upper Caves Scavenger-Gunner | -5/Zhirov Scavenger-Gunner | -4/Proximity Caves Scavenger-Gunner | -4/Factory Scavenger-Gunner | -3/Research Scavenger-Gunner | -3/Quarantine Scavenger-Gunner | -2/Research Scavenger-Gunner | -1/Access Resources | -11 -10 -10 -9 -8 -7 -7 -7 -7 -6 -6 -6 -6 -6 -6 -5 -5 -5 -5 -4 -4 -3 -3 -2 -1 ----------- Run | Scr Mat Min Mat Mat Fac Low Low Dat Pro Fac Ext Cet Arc Hub Fac Upp Upp Zhi Pro Fac Res Qua Res Acc Matter Collected 8666 | 200 166 . 229 551 . 134 220 . 154 488 658 134 . 191 281 144 227 200 439 866 1106 1390 618 270 Remotely . | . . . . . . . . . . . . . . . . . . . . . . . . . Salvage Created 17371 | . 286 . 420 520 . 75 402 . 206 332 678 174 137 785 932 73 386 . 533 1936 2032 2334 2367 2763 Parts 838 | . 27 . 37 37 . 7 11 . 5 18 40 8 9 36 39 3 15 . 30 92 92 140 86 106 Haulers Intercepted 8 | . 1 . 1 . . . . . . 1 . . . . 1 . . . . 2 1 . 1 . Recyclers Shooed 11 | . 3 . 1 . . . . . . . . . . . . . . . . 2 . . 2 3 Parts Field Recycled . | . . . . . . . . . . . . . . . . . . . . . . . . . Retrieved Matter . | . . . . . . . . . . . . . . . . . . . . . . . . . Parts Self-Destructed 69 | . . . . . . 9 12 . 4 . . . . . . 3 13 . 28 . . . . . Prevented 2 | . . . . . . . . . 1 . . . . . . . . . 1 . . . . . Kills | -11 -10 -10 -9 -8 -7 -7 -7 -7 -6 -6 -6 -6 -6 -6 -5 -5 -5 -5 -4 -4 -3 -3 -2 -1 ------- Run | Scr Mat Min Mat Mat Fac Low Low Dat Pro Fac Ext Cet Arc Hub Fac Upp Upp Zhi Pro Fac Res Qua Res Acc Combat Hostiles Destroyed 270 | . 8 . 12 12 . 3 9 . 6 9 12 2 2 12 10 1 9 . 13 27 25 33 26 39 Melee 1 | . . . . . . . . . . . . . . . . . . . . . . 1 . . Guns 220 | . 8 . 9 12 . 3 3 . 3 7 10 1 1 9 10 1 9 . 13 23 22 20 21 35 Cannons 26 | . . . 3 . . . 6 . 2 2 2 . . . . . . . . 1 . 9 1 . AOE 5 | . . . . . . . . . 1 . . . . 2 . . . . . 1 1 . . . Classes Destroyed 16 | . 4 . 3 2 . . . . 1 1 2 . . 1 . . 1 . . . . 1 . . Worker 7 | . . . . 1 . . . . . 1 . . . . . . . . . 1 1 . 2 1 Builder 12 | . . . . . . . . . . . 2 . . 1 1 . . . . 2 5 . 1 . Hauler 8 | . 1 . 1 . . . . . . 1 . . . . 1 . . . . 2 1 . 1 . Recycler 8 | . 1 . . . . . . . . . . . . . 1 . . . . 3 . . 2 1 Operator 6 | . . . 2 . . . . . . 2 . . . . 1 . . . . . . . . 1 Watcher 12 | . 1 . 1 1 . . . . . . 2 1 . . 1 . . . . 1 2 1 . 1 Swarmer 83 | . 8 . 8 4 . 3 . . 3 6 3 . . . . . 5 . 9 13 5 . 5 11 Grunt 71 | . . . 2 4 . . 7 . 2 2 3 . . 7 6 . 1 . . 2 8 4 13 10 Brawler 4 | . . . . 1 . . 1 . . . . . . . 1 . . . . . . . 1 . Duelist 3 | . . . . . . . . . . . . . . . . . 2 . . . . . 1 . Sentry 30 | . . . 2 3 . . 1 . . . 4 . 2 2 2 . 1 . 1 2 3 . 2 5 Specialist 2 | . . . . . . . . . . . . . . 2 . . . . . . . . . . Hunter 20 | . . . . . . . . . 1 . . . . . 1 . . . 2 4 4 4 2 2 Programmer 49 | . . . . . . . . . . 1 . . . 1 . . . . 1 6 6 21 2 11 Behemoth 3 | . . . . . . . . . . . 2 . . . . 1 . . . . . . . . Cetus Guard 2 | . . . . . . . . . . . . 2 . . . . . . . . . . . . Lightning 3 | . . . . . . . . . . . . . . . . . . . . . . 3 . . Alpha 7 1 | . . . . . . . . . . . . . . . . . . . . . . 1 . . Best Kill Streak 18 | . 4 . 6 4 . 3 4 . 3 5 6 2 2 6 4 1 4 . 5 9 9 7 18 9 Combat Bots Only 14 | . 3 . 5 4 . 3 4 . 3 5 3 2 2 5 3 1 4 . 5 6 5 7 14 9 Max Kills in Single Turn 3 | . 2 . 1 1 . 1 1 . 1 1 2 1 1 3 2 1 2 . 2 2 3 1 2 2 Gunslinging 1 | . 1 . . . . . . . . . . . . . . . 1 . 1 1 . . 1 1 Exploded 2 | . . . . . . . . . 1 . . . . 2 . . . . . 1 1 . . . Melee 1 | . . . . . . . . . . . . . . . . . . . . . . 1 . . Uniques/NPCs Destroyed . | . . . . . . . . . . . . . . . . . . . . . . . . . Combat | -11 -10 -10 -9 -8 -7 -7 -7 -7 -6 -6 -6 -6 -6 -6 -5 -5 -5 -5 -4 -4 -3 -3 -2 -1 -------- Run | Scr Mat Min Mat Mat Fac Low Low Dat Pro Fac Ext Cet Arc Hub Fac Upp Upp Zhi Pro Fac Res Qua Res Acc Damage Taken 17905 | . 141 605 208 371 . 206 729 . 523 380 1368 275 . 617 719 303 250 . 688 2379 1391 2615 1944 2193 Core 2369 | . 26 70 54 41 . 23 136 . 87 12 78 63 . 57 61 . 49 . 58 236 153 455 306 404 Absorbed by Shields 1764 | . . . . . . . 100 . 52 8 . 115 . . . . 60 . 282 192 480 219 256 . Redirected to Core 543 | . . . . . . . . . . . . . . . . . . . . . . 129 72 342 Redirected to Shielding 171 | . . . . . . . . . . . . . . . . . . . 157 . 14 . . . Core Remaining (%) 76 | 100 . 61 86 92 . . . . 64 . . . . 75 . . . . 83 79 . 53 78 74 Volleys Fired 856 | . 29 1 31 39 . 9 25 . 15 40 58 19 9 32 65 7 15 . 30 73 81 98 70 110 Largest 3 | . 2 2 2 2 . 2 2 . 2 2 2 2 2 2 3 3 3 . 3 3 3 3 3 3 Hottest 264 | . 40 40 80 46 . 46 67 . 95 105 120 90 140 140 150 150 151 . 176 156 180 231 264 264 Shots Fired 1995 | . 58 2 62 78 . 18 50 . 26 76 111 38 12 59 132 19 45 . 87 208 216 242 158 298 Gun 1792 | . 58 2 50 78 . 18 35 . 12 50 85 38 12 59 132 19 45 . 87 189 216 167 142 298 Cannon 203 | . . . 12 . . . 15 . 14 26 26 . . . . . . . . 19 . 75 16 . Launcher . | . . . . . . . . . . . . . . . . . . . . . . . . . Special . | . . . . . . . . . . . . . . . . . . . . . . . . . Kinetic 1134 | . 58 2 50 78 . 18 50 . 14 65 69 21 . 25 68 14 30 . 59 157 146 154 56 . Thermal 772 | . . . 12 . . . . . . 10 42 . 3 27 64 5 15 . 25 45 58 82 86 298 Explosive . | . . . . . . . . . . . . . . . . . . . . . . . . . Electromagnetic 89 | . . . . . . . . . 12 1 . 17 9 7 . . . . 3 6 12 6 16 . Robot Hit Streak 68 | . 12 . 18 33 . 12 20 . 18 44 30 10 7 17 19 30 12 . 16 26 42 26 68 55 Robot Miss Streak 5 | . 5 2 1 1 . 1 3 . 3 3 2 2 2 2 3 1 3 . 2 4 2 3 2 5 Penetration Max 2 | . . . . . . . . . . . 1 1 . . 1 . . . 1 1 1 2 2 . Secondary Targets 28 | . 1 . . 1 . . 1 . 1 . . . . . 1 . 2 . 3 2 . . 6 10 Max Gunslinging Chain 2 | . 1 . . 1 . . 1 . 1 . . . . . 1 . 1 . 1 1 . . 1 2 Shots Hit Robots 1587 | . 36 . 50 72 . 15 45 . 24 63 95 31 8 47 73 17 31 . 69 148 182 199 136 246 Core Hits 715 | . 19 . 22 25 . 6 33 . 26 40 32 14 3 24 32 5 14 . 21 58 78 91 70 102 Critical Kills 34 | . . . . . . . . . . . 3 . . 2 4 . . . 3 7 2 10 3 . Critical Parts Destroyed 41 | . . . . . . . . . . 1 1 . . 4 3 1 1 . 5 5 4 12 4 . Critical Strikes 125 | . . . . . . . . . . 1 6 1 . 6 7 1 3 . 8 14 11 29 23 15 Burn 34 | . . . . . . . . . . . 1 . . . . . 1 . . 1 4 3 9 15 Meltdown 3 | . . . . . . . . . . . . . . . . . . . . . . 3 . . Destroy 74 | . . . . . . . . . . 1 5 . . 6 7 1 2 . 8 12 6 19 7 . Corrupt 11 | . . . . . . . . . . . . 1 . . . . . . . 1 1 1 7 . Impale 3 | . . . . . . . . . . . . . . . . . . . . . . 3 . . Melee Attacks 37 | . . . . . . . . . . . 1 . . . . . . . . . 16 17 . 3 Impact . | . . . . . . . . . . . . . . . . . . . . . . . . . Slashing 4 | . . . . . . . . . . . 1 . . . . . . . . . . . . 3 Piercing 33 | . . . . . . . . . . . . . . . . . . . . . 16 17 . . Sneak Attacks 4 | . . . . . . . . . . . . . . . . . . . . . 4 . . . Combat Hostiles 4 | . . . . . . . . . . . . . . . . . . . . . 4 . . . Follow-up Attacks . | . . . . . . . . . . . . . . . . . . . . . . . . . Damage Inflicted 43490 | . 364 . 769 1117 . 240 737 . 590 1527 2887 718 231 1918 2002 492 904 . 1598 4715 4530 6891 4298 6962 Guns 35427 | . 364 . 549 1117 . 240 446 . 193 974 1595 718 231 1289 2002 492 904 . 1598 3992 4497 3824 3440 6962 Cannons 5650 | . . . 220 . . . 291 . 307 342 1048 . . . . . . . . 446 . 2138 858 . Explosions 1428 | . . . . . . . . . 90 211 244 . . 629 . . . . . 254 . . . . Melee 962 | . . . . . . . . . . . . . . . . . . . . . 33 929 . . Ramming 23 | . . . . . . . . . . . . . . . . . . . . 23 . . . . Kinetic 20948 | . 364 . 549 1117 . 240 737 . 307 1089 1275 349 . 535 1308 310 597 . 1139 3541 2576 3453 1462 . Thermal 18433 | . . . 220 . . . . . 90 267 1612 . 72 647 694 182 307 . 407 934 1603 2458 1978 6962 Explosive 149 | . . . . . . . . . . 149 . . . . . . . . . . . . . . Electromagnetic 2975 | . . . . . . . . . 193 22 . 369 159 736 . . . . 52 217 318 51 858 . Impact . | . . . . . . . . . . . . . . . . . . . . . . . . . Slashing . | . . . . . . . . . . . . . . . . . . . . . . . . . Piercing 962 | . . . . . . . . . . . . . . . . . . . . . 33 929 . . Highest Corruption 34 | . 1 1 . 1 . . . . . . 1 . . 24 . . . . . 12 5 34 . . Average Corruption 10 | . 1 1 . 1 . . . . . . 1 . . 3 . . . . . 1 3 19 . . Corruption Purged . | . . . . . . . . . . . . . . . . . . . . . . . . . Corruption Blocked 21 | . . . . . . . . . . . . . . . . . . . . . 11 . 1 9 Effects 145 | . 1 . . 2 . . . . . . 1 . . 3 . . . . . 5 23 110 . . Message Errors 36 | . . . . . . . . . . . 1 . . 1 . . . . . 2 6 26 . . Matter Fused 24 | . . . . . . . . . . . . . . . . . . . . 1 7 16 . . Heat Flow Errors 19 | . . . . . . . . . . . . . . 1 . . . . . . 2 16 . . Energy Discharges 15 | . . . . . . . . . . . . . . . . . . . . . 2 13 . . Parts Rejected 1 | . . . . . . . . . . . . . . . . . . . . . 1 . . . Data Loss (minor) 22 | . 1 . . 2 . . . . . . . . . . . . . . . 1 4 14 . . Data Loss (major) 8 | . . . . . . . . . . . . . . . . . . . . . . 8 . . Misfires 4 | . . . . . . . . . . . . . . . . . . . . 1 . 3 . . Alerts 2 | . . . . . . . . . . . . . . . . . . . . . . 2 . . Misdirections 3 | . . . . . . . . . . . . . . 1 . . . . . . . 2 . . Weapon Failures 11 | . . . . . . . . . . . . . . . . . . . . . 1 10 . . Overload Shots . | . . . . . . . . . . . . . . . . . . . . . . . . . Overflow Damage 350 | . . . . . . . . . 44 46 15 . . 28 . . . . . 9 . 155 53 . Projectiles 213 | . . . . . . . . . . 9 15 . . . . . . . . 9 . 127 53 . Explosions 109 | . . . . . . . . . 44 37 . . . 28 . . . . . . . . . . Melee 28 | . . . . . . . . . . . . . . . . . . . . . . 28 . . Knockbacks 43 | . . . . . . . 11 . 12 18 . . . . . . . . . 2 . . . . Impact 2 | . . . . . . . . . . . . . . . . . . . . 2 . . . . Kinetic 38 | . . . . . . . 11 . 12 15 . . . . . . . . . . . . . . Secondary 3 | . . . . . . . . . . 3 . . . . . . . . . . . . . . Self-Inflicted Damage 170 | . . . . . . . . . 54 . 36 . . 80 . . . . . . . . . . Shots 3 | . . . . . . . . . 1 . 1 . . 1 . . . . . . . . . . Rammed . | . . . . . . . . . . . . . . . . . . . . . . . . . Targets Rammed 6 | . . . . . . . . . . . . . . . . . . . . 6 . . . . Kicked 6 | . . . . . . . . . . . . . . . . . . . . 6 . . . . Crushed . | . . . . . . . . . . . . . . . . . . . . . . . . . Highest Temperature 471 | . 4 23 151 17 . . 118 . 192 47 430 275 235 464 258 104 48 . . 34 297 373 471 255 Average Temperature 80 | . 1 14 75 3 . . 41 . 68 15 107 97 103 166 73 53 22 . . 8 57 82 110 66 Received Heat Transfer 3155 | . . 101 54 162 . . 493 . 116 54 333 17 . 255 207 48 33 . 6 295 214 54 362 351 Effects 16 | . . . . . . . . . . . 4 . . 5 3 . . . . . . 1 3 . Shutdowns 5 | . . . . . . . . . . . 1 . . 1 . . . . . . . 1 2 . Energy Bleed 3 | . . . . . . . . . . . 1 . . 2 . . . . . . . . . . Interference 7 | . . . . . . . . . . . 2 . . 2 3 . . . . . . . . . Short Circuit 1 | . . . . . . . . . . . . . . . . . . . . . . . 1 . Siege Activations . | . . . . . . . . . . . . . . . . . . . . . . . . . Robots Corrupted 12 | . . . . . . . . . . . . 2 1 1 . . . . . 2 2 . 4 . Combat Hostiles 10 | . . . . . . . . . . . . 1 1 1 . . . . . 2 2 . 3 . Parts Fried 15 | . . . . . . . . . . . . 4 . 4 . . . . . 2 2 . 3 . Impact Corruptions . | . . . . . . . . . . . . . . . . . . . . . . . . . Robots Melted 8 | . . . . . . . . . . . . . . . . . . . . . . 3 1 4 Combat Hostiles 8 | . . . . . . . . . . . . . . . . . . . . . . 3 1 4 Parts Melted 67 | . . . . . . . . . . . . . . 1 . . 1 . 1 . 5 10 12 37 Heat Transferred 24179 | . . . 444 . . . . . 100 383 829 . 74 814 962 185 481 . 592 1075 2257 2293 3441 10249 Parts Sabotaged . | . . . . . . . . . . . . . . . . . . . . . . . . . Parts Stolen . | . . . . . . . . . . . . . . . . . . . . . . . . . Parts Stripped . | . . . . . . . . . . . . . . . . . . . . . . . . . Power Chain Reactions 4 | . . . . . . . . . 1 1 2 . . . . . . . . . . . . . Missiles Intercepted . | . . . . . . . . . . . . . . . . . . . . . . . . . Alert | -11 -10 -10 -9 -8 -7 -7 -7 -7 -6 -6 -6 -6 -6 -6 -5 -5 -5 -5 -4 -4 -3 -3 -2 -1 ------- Run | Scr Mat Min Mat Mat Fac Low Low Dat Pro Fac Ext Cet Arc Hub Fac Upp Upp Zhi Pro Fac Res Qua Res Acc Peak Influence 605 | . 203 21 190 198 17 . . . . 316 230 343 184 605 431 . . . . 359 248 308 594 564 Initial 311 | . . 21 . . 3 . . . . 27 35 71 115 53 255 . . . . 24 19 74 84 311 Average 175 | . 76 13 73 70 3 . . . . 177 111 237 157 195 281 . . . . 147 70 125 396 365 Maximum Alert Level 2 | . 1 . . . . . . . . 1 1 1 . 2 2 . . . . 1 1 1 2 2 Low Security (%) 62 | . 90 100 100 100 100 . . . . 58 91 40 100 51 21 . . . . 69 93 72 21 3 Level 1 27 | . 9 . . . . . . . . 41 8 59 . 41 60 . . . . 30 6 27 16 57 Level 2 10 | . . . . . . . . . . . . . . 7 18 . . . . . . . 61 39 Level 3 . | . . . . . . . . . . . . . . . . . . . . . . . . . Level 4 . | . . . . . . . . . . . . . . . . . . . . . . . . . Level 5 . | . . . . . . . . . . . . . . . . . . . . . . . . . High Security . | . . . . . . . . . . . . . . . . . . . . . . . . . Max Security . | . . . . . . . . . . . . . . . . . . . . . . . . . Squads Dispatched 47 | . 1 . 1 1 . . . . . 3 4 . . 5 3 . . . . 7 3 6 7 6 Investigation 4 | . 1 . . 1 . . . . . . . . . . . . . . . . . 1 1 . Extermination 18 | . . . . . . . . . . 1 . . . 1 1 . . . . 3 3 4 1 4 Reinforcement 17 | . . . 1 . . . . . . 2 4 . . 1 2 . . . . 4 . 1 2 . Assault 2 | . . . . . . . . . . . . . . . . . . . . . . . . 2 Garrison 6 | . . . . . . . . . . . . . . 3 . . . . . . . . 3 . Intercept . | . . . . . . . . . . . . . . . . . . . . . . . . . Searches Triggered . | . . . . . . . . . . . . . . . . . . . . . . . . . Data Miner Redirects 2 | . . . . . . . . . . . . . . . . . . . . . . 1 . 1 Construction Impeded 2 | . . . . . . . . . . . 2 . . . . . . . . . . . . . Haulers Reinforced 2 | . . . . . . . . . . . . . . . . . . . . . . . 2 . Active Scanning Responses . | . . . . . . . . . . . . . . . . . . . . . . . . . Cargo Convoy Interrupts 1 | . . . . . . . . . . . . . . . . . . . . . 1 . . . Stealth | -11 -10 -10 -9 -8 -7 -7 -7 -7 -6 -6 -6 -6 -6 -6 -5 -5 -5 -5 -4 -4 -3 -3 -2 -1 --------- Run | Scr Mat Min Mat Mat Fac Low Low Dat Pro Fac Ext Cet Arc Hub Fac Upp Upp Zhi Pro Fac Res Qua Res Acc Distress Signals 15 | . 2 . 3 . . . . . . . 1 2 . 2 2 . . . . 1 1 . 1 . Communications Jammed 97 | . . . . . . . . . . . . . . . 8 . . . . 39 7 41 2 . Distress Signals 96 | . . . . . . . . . . . . . . . 8 . . . . 38 7 41 2 . Times Spotted 439 | . 13 14 21 17 . 4 9 . 9 20 25 11 5 18 23 1 10 . 14 48 44 46 34 53 Peak Tracking Total 21 | . 5 21 5 4 . 4 4 . 4 5 4 5 1 4 7 1 5 . 4 8 4 4 7 9 Tactical Retreats 25 | . 1 . 1 . . . . . . 2 1 . . 3 2 . 1 . 1 3 2 . 3 5 Traps | -11 -10 -10 -9 -8 -7 -7 -7 -7 -6 -6 -6 -6 -6 -6 -5 -5 -5 -5 -4 -4 -3 -3 -2 -1 ------- Run | Scr Mat Min Mat Mat Fac Low Low Dat Pro Fac Ext Cet Arc Hub Fac Upp Upp Zhi Pro Fac Res Qua Res Acc Traps Triggered 12 | . 3 . . . . . . . . 1 1 . . 4 . . . . . 1 . . 2 . Indirectly . | . . . . . . . . . . . . . . . . . . . . . . . . . Trap Hack Attempts . | . . . . . . . . . . . . . . . . . . . . . . . . . Triggered . | . . . . . . . . . . . . . . . . . . . . . . . . . Disarmed . | . . . . . . . . . . . . . . . . . . . . . . . . . Reprogrammed . | . . . . . . . . . . . . . . . . . . . . . . . . . Reused . | . . . . . . . . . . . . . . . . . . . . . . . . . Traps Extracted . | . . . . . . . . . . . . . . . . . . . . . . . . . Installed . | . . . . . . . . . . . . . . . . . . . . . . . . . Triggered 3 | . . . . . . . . . . . . . . . . 1 . . . . 2 . . . Machines | -11 -10 -10 -9 -8 -7 -7 -7 -7 -6 -6 -6 -6 -6 -6 -5 -5 -5 -5 -4 -4 -3 -3 -2 -1 ---------- Run | Scr Mat Min Mat Mat Fac Low Low Dat Pro Fac Ext Cet Arc Hub Fac Upp Upp Zhi Pro Fac Res Qua Res Acc Machines Disabled 37 | . . . . . . . . . . 6 3 2 . 8 1 . . . . 6 . 10 . 1 Max in Single Turn 5 | . . . . . . . . . . 2 1 . . 5 1 . . . . 3 . 1 . 1 Garrison Access 4 | . . . . . 1 . . . . . . . . 1 . . . . . . 1 . 1 . Network Hub 1 | . . . . . . . . . . . . . . 1 . . . . . . . . . . Machines Sabotaged . | . . . . . . . . . . . . . . . . . . . . . . . . . Garrisons Compromised 1 | . . . . . . . . . . . . . . . . . . . . . 1 . . . Overloaded Fab Kills . | . . . . . . . . . . . . . . . . . . . . . . . . . Hacking | -11 -10 -10 -9 -8 -7 -7 -7 -7 -6 -6 -6 -6 -6 -6 -5 -5 -5 -5 -4 -4 -3 -3 -2 -1 --------- Run | Scr Mat Min Mat Mat Fac Low Low Dat Pro Fac Ext Cet Arc Hub Fac Upp Upp Zhi Pro Fac Res Qua Res Acc Machines Accessed 76 | . 4 . 3 6 3 2 . 4 . 3 5 2 . 4 4 1 . 4 . 4 7 10 4 6 Terminals 55 | . 3 . 3 6 1 . . . . 3 4 2 . 3 4 . . . . 4 5 9 2 6 Fabricators . | . . . . . . . . . . . . . . . . . . . . . . . . . Repair Stations . | . . . . . . . . . . . . . . . . . . . . . . . . . Recycling Units 4 | . 1 . . . 1 . . . . . 1 . . . . . . . . . 1 . . . Scanalyzers . | . . . . . . . . . . . . . . . . . . . . . . . . . Garrison Access 6 | . . . . . 1 . . . . . . . . 1 . . . . . . 1 1 2 . Total Hacks 230 | . 8 . 10 20 6 7 . 30 . 7 16 10 . 8 15 1 . 17 . 11 20 22 7 15 Successful 134 | . 6 . 7 12 3 7 . 30 . 2 9 3 . 2 9 1 . 17 . 2 10 8 2 4 Failed 96 | . 2 . 3 8 3 . . . . 5 7 7 . 6 6 . . . . 9 10 14 5 11 Catastrophic 19 | . . . . 2 . . . . . 2 1 1 . 1 1 . . . . 1 3 3 1 3 Database Lockouts . | . . . . . . . . . . . . . . . . . . . . . . . . . Manual 80 | . 6 . 8 16 4 . . . . 6 4 1 . 4 5 . . . . 7 11 5 1 2 Terminals 156 | . 6 . 10 20 3 . . . . 7 14 10 . 6 15 . . . . 11 16 20 3 15 Fabricators . | . . . . . . . . . . . . . . . . . . . . . . . . . Repair Stations . | . . . . . . . . . . . . . . . . . . . . . . . . . Recycling Units 9 | . 2 . . . 2 . . . . . 2 . . . . . . . . . 3 . . . Scanalyzers . | . . . . . . . . . . . . . . . . . . . . . . . . . Garrison Access 10 | . . . . . 1 . . . . . . . . 2 . . . . . . 1 2 4 . Terminal Hacks 119 | . 5 . 7 12 2 7 . 30 . . 7 3 . 1 8 1 . 17 . 2 4 8 1 4 Record 32 | . . . . . . 6 . 11 . . 1 3 . . . . . 5 . . . 5 1 . Part Schematic 18 | . 1 . 1 . . . . 12 . . . . . . . . . 4 . . . . . . Robot Schematic 4 | . . . . . . . . 4 . . . . . . . . . . . . . . . . Robot Analysis 10 | . 2 . 1 3 . . . . . . . . . . . . . 4 . . . . . . Prototype ID Bank 12 | . . . 1 2 . . . 3 . . 1 . . . 1 . . 4 . . . . . . Open Door 5 | . . . . . . 1 . . . . . . . . . 1 . . . . 1 2 . . Level Access Points 4 | . . . . . 1 . . . . . . . . 1 . . . . . 1 . . . 1 Branch Access Points 4 | . . . . 1 1 . . . . . . . . . 1 . . . . . 1 . . . Emergency Access Points 1 | . . . . . . . . . . . . . . . 1 . . . . . . . . . Machine Index 1 | . . . . . . . . . . . . . . . . . . . . . . . . 1 Terminal Index 2 | . . . . . . . . . . . 1 . . . . . . . . . . 1 . . Unreport Threat 13 | . 1 . 2 4 . . . . . . . . . . 2 . . . . 1 1 . . 2 Recall Reinforcements 1 | . . . . . . . . . . . . . . . 1 . . . . . . . . . Hauler Manifests 2 | . . . . 1 . . . . . . 1 . . . . . . . . . . . . . Registered Components 1 | . . . . . . . . . . . 1 . . . . . . . . . . . . . Zone Layout 9 | . 1 . 2 1 . . . . . . 2 . . . 2 . . . . . 1 . . . Fabricator Hacks . | . . . . . . . . . . . . . . . . . . . . . . . . . Repair Station Hacks . | . . . . . . . . . . . . . . . . . . . . . . . . . Recycling Unit Hacks 2 | . . . . . . . . . . . . . . . . . . . . . 2 . . . Retrieve Components 2 | . . . . . . . . . . . . . . . . . . . . . 2 . . . Scanalyzer . | . . . . . . . . . . . . . . . . . . . . . . . . . Garrison Access Hacks 4 | . . . . . 1 . . . . . . . . 1 . . . . . . 1 . 1 . Seal Access 4 | . . . . . 1 . . . . . . . . 1 . . . . . . 1 . 1 . Unauthorized Hacks 9 | . 1 . . . . . . . . 2 2 . . . 1 . . . . . 3 . . . Terminals 8 | . . . . . . . . . . 2 2 . . . 1 . . . . . 3 . . . Botnet 5 | . . . . . . . . . . 1 1 . . . . . . . . . 3 . . . Disrupt 1 | . . . . . . . . . . . . . . . 1 . . . . . . . . . Operators 2 | . . . . . . . . . . 1 1 . . . . . . . . . . . . . Fabricators . | . . . . . . . . . . . . . . . . . . . . . . . . . Repair Stations . | . . . . . . . . . . . . . . . . . . . . . . . . . Recycling Units 1 | . 1 . . . . . . . . . . . . . . . . . . . . . . . Mask 1 | . 1 . . . . . . . . . . . . . . . . . . . . . . . Scanalyzers . | . . . . . . . . . . . . . . . . . . . . . . . . . Garrison Access . | . . . . . . . . . . . . . . . . . . . . . . . . . Data Cores Recovered 2 | . . . . . . . . . . . . . . . 1 . . . . . . . . 1 Used 2 | . . . . . . . . . . . . . . . 1 . . . . . . . . 1 Hacking Detections 57 | . 4 . 3 6 2 . . . . 3 5 3 . 3 4 . . . . 4 5 6 3 6 Full Trace Events 3 | . . . . 1 . . . . . . . . . . . . . . . . . 1 1 . Feedback Events 1 | . . . . . . . . . . . . . . . . . . . . . . 1 . . Corruption 1 | . . . . . . . . . . . . . . . . . . . . . . 1 . . Feedback Blocked . | . . . . . . . . . . . . . . . . . . . . . . . . . Robot Schematics Acquired 4 | . . . . . . . . 4 . . . . . . . . . . . . . . . . Robots Built . | . . . . . . . . . . . . . . . . . . . . . . . . . Authchips . | . . . . . . . . . . . . . . . . . . . . . . . . . Time . | . . . . . . . . . . . . . . . . . . . . . . . . . Total Robot Build Rating . | . . . . . . . . . . . . . . . . . . . . . . . . . Part Schematics Acquired 18 | . 1 . 1 . . . . 12 . . . . . . . . . 4 . . . . . . Parts Built . | . . . . . . . . . . . . . . . . . . . . . . . . . Authchips . | . . . . . . . . . . . . . . . . . . . . . . . . . Time . | . . . . . . . . . . . . . . . . . . . . . . . . . Total Part Build Rating . | . . . . . . . . . . . . . . . . . . . . . . . . . Parts Repaired . | . . . . . . . . . . . . . . . . . . . . . . . . . Time . | . . . . . . . . . . . . . . . . . . . . . . . . . Parts Recycled . | . . . . . . . . . . . . . . . . . . . . . . . . . Recycled Matter . | . . . . . . . . . . . . . . . . . . . . . . . . . Retrieved Matter . | . . . . . . . . . . . . . . . . . . . . . . . . . Retrieved Components 20 | . . . . . . . . . . . . . . . . . . . . . 20 . . . Parts Scanalyzed . | . . . . . . . . . . . . . . . . . . . . . . . . . Part Schematics Acquired . | . . . . . . . . . . . . . . . . . . . . . . . . . Parts Damaged . | . . . . . . . . . . . . . . . . . . . . . . . . . Bothacking | -11 -10 -10 -9 -8 -7 -7 -7 -7 -6 -6 -6 -6 -6 -6 -5 -5 -5 -5 -4 -4 -3 -3 -2 -1 ------------ Run | Scr Mat Min Mat Mat Fac Low Low Dat Pro Fac Ext Cet Arc Hub Fac Upp Upp Zhi Pro Fac Res Qua Res Acc Used RIF Installer . | . . . . . . . . . . . . . . . . . . . . . . . . . Robots Hacked . | . . . . . . . . . . . . . . . . . . . . . . . . . Non-combat . | . . . . . . . . . . . . . . . . . . . . . . . . . Combat . | . . . . . . . . . . . . . . . . . . . . . . . . . Robot Hacks Applied . | . . . . . . . . . . . . . . . . . . . . . . . . . Relay Couplers Released . | . . . . . . . . . . . . . . . . . . . . . . . . . Fabnet Peak Effective % . | . . . . . . . . . . . . . . . . . . . . . . . . . Robots Rewired 3 | . . . . . . . . . . . 3 . . . . . . . . . . . . . Allies Hacked . | . . . . . . . . . . . . . . . . . . . . . . . . . Hacks Repelled . | . . . . . . . . . . . . . . . . . . . . . . . . . Allies | -11 -10 -10 -9 -8 -7 -7 -7 -7 -6 -6 -6 -6 -6 -6 -5 -5 -5 -5 -4 -4 -3 -3 -2 -1 -------- Run | Scr Mat Min Mat Mat Fac Low Low Dat Pro Fac Ext Cet Arc Hub Fac Upp Upp Zhi Pro Fac Res Qua Res Acc Total Allies 18 | . . . . . . . . . 1 . 12 1 . . . . . . . . 4 . . . Largest Group 6 | . . . . . . . . . 1 . 6 6 2 1 . . . . . . 1 . . . Highest-Rated Group 342 | . . . . . . . . . 96 . 283 342 130 96 . . . . . . 56 . . . Highest-Rated Ally 159 | . . . . . . . . . 96 . 159 159 96 96 . . . . . . 56 . . . Total Orders . | . . . . . . . . . . . . . . . . . . . . . . . . . Ally Attacks 96 | . . . . . . . . . 13 . 22 45 9 2 . . . . . . 5 . . . Total Damage 2853 | . . . . . . . . . 376 . 540 1361 323 95 . . . . . . 158 . . . Kills 22 | . . . . . . . . . 2 . 6 11 2 . . . . . . . 1 . . . Allies Corrupted . | . . . . . . . . . . . . . . . . . . . . . . . . . Allies Melted 1 | . . . . . . . . . . . . . . . . . . . . . 1 . . . Intel | -11 -10 -10 -9 -8 -7 -7 -7 -7 -6 -6 -6 -6 -6 -6 -5 -5 -5 -5 -4 -4 -3 -3 -2 -1 ------- Run | Scr Mat Min Mat Mat Fac Low Low Dat Pro Fac Ext Cet Arc Hub Fac Upp Upp Zhi Pro Fac Res Qua Res Acc Robot Analysis Total 10 | . 2 . 1 3 . . . . . . . . . . . . . 4 . . . . . . Derelict Logs Recovered 4 | . . . . . . 1 . . 2 . . . . . . . 1 . . . . . . . Drone Launches . | . . . . . . . . . . . . . . . . . . . . . . . . . Drone Recoveries . | . . . . . . . . . . . . . . . . . . . . . . . . . Exploration | -11 -10 -10 -9 -8 -7 -7 -7 -7 -6 -6 -6 -6 -6 -6 -5 -5 -5 -5 -4 -4 -3 -3 -2 -1 ------------- Run | Scr Mat Min Mat Mat Fac Low Low Dat Pro Fac Ext Cet Arc Hub Fac Upp Upp Zhi Pro Fac Res Qua Res Acc Turns Passed 18145 | . 458 33 423 592 303 908 487 106 739 930 944 311 71 398 838 559 724 217 499 1752 2117 2082 787 1867 Spaces Moved 11644 | 1 292 21 234 347 233 680 316 82 450 597 569 204 44 247 560 434 526 164 316 1082 1340 1282 472 1151 Core . | . . . . . . . . . . . . . . . . . . . . . . . . . Treads 15 | . . 6 6 . . . . . . . . . . . . . . . . . . 3 . . Legs 11629 | 1 292 15 228 347 233 680 316 82 450 597 569 204 44 247 560 434 526 164 316 1082 1340 1279 472 1151 Wheels . | . . . . . . . . . . . . . . . . . . . . . . . . . Hover . | . . . . . . . . . . . . . . . . . . . . . . . . . Flight . | . . . . . . . . . . . . . . . . . . . . . . . . . Fastest Speed 112 | 120 120 120 120 120 126 126 130 130 123 120 120 120 120 112 112 122 122 122 115 112 120 116 113 116 Average Speed 122 | 120 120 138 124 123 126 128 130 130 146 128 120 120 120 113 114 122 122 122 121 114 120 125 115 116 Slowest Speed 305 | 120 190 190 240 193 126 130 130 130 195 190 190 120 120 120 122 122 122 122 122 190 120 305 116 116 Overloaded Moves . | . . . . . . . . . . . . . . . . . . . . . . . . . Propulsion Burnouts . | . . . . . . . . . . . . . . . . . . . . . . . . . Robots Hopped . | . . . . . . . . . . . . . . . . . . . . . . . . . Cave-ins Triggered 1 | . . . . . . . . . . . . . . . 1 . . . . . . . . . Exploration Rate (%) 45 | 2 54 19 30 29 7 78 55 71 69 19 76 72 75 34 14 60 62 62 56 27 26 96 14 27 Regions Visited 24 Branch Regions 14 Pre-discovered Areas 5 | . . . . . . . . 1 1 . . . . . . . . 3 . . . . . . Known Exits Taken 11 | . . . . . 1 1 1 1 1 1 . . . 1 1 . . . . 1 1 1 . . Unknown Exits Taken 13 | 1 1 1 1 1 . . . . . . 1 1 1 . . 1 1 1 1 . . . 1 . Scrap Searched 12 | . . . . . . 3 1 . 5 . . . . . . 2 1 . . . . . . . Spaces Dug 14 | . . . . . . . . . . . . . . . 9 . . . . . 2 . . 3 Terrain Destroyed 414 | . . . . . . . . . 10 39 15 1 . 182 47 . 17 . 23 45 5 22 5 3 Melee 5 | . . . . . . . . . . . . . . . . . . . . . 2 . . 3 Projectile 167 | . . . . . . . . . . . 3 1 . 11 47 . 17 . 23 38 3 19 5 . AOE 239 | . . . . . . . . . 10 39 12 . . 171 . . . . . 7 . . . . Terrain Rammed . | . . . . . . . . . . . . . . . . . . . . . . . . . Walls Destroyed . | . . . . . . . . . . . . . . . . . . . . . . . . . Machines Disabled . | . . . . . . . . . . . . . . . . . . . . . . . . . Actions | -11 -10 -10 -9 -8 -7 -7 -7 -7 -6 -6 -6 -6 -6 -6 -5 -5 -5 -5 -4 -4 -3 -3 -2 -1 --------- Run | Scr Mat Min Mat Mat Fac Low Low Dat Pro Fac Ext Cet Arc Hub Fac Upp Upp Zhi Pro Fac Res Qua Res Acc Total 14115 | . 349 23 307 437 242 696 346 81 504 697 721 243 53 317 652 450 581 181 370 1441 1723 1566 615 1520 Wait 766 | . 2 . 8 7 . 2 1 . 18 14 27 2 1 5 11 1 31 3 15 197 160 37 34 190 Move 11619 | . 291 20 233 346 232 679 315 81 449 596 568 203 43 246 559 433 525 163 315 1081 1339 1281 471 1150 Hop . | . . . . . . . . . . . . . . . . . . . . . . . . . Pick Up 218 | . 12 . 17 13 4 1 1 . 10 14 9 6 . 4 5 3 3 3 2 26 43 25 10 7 Fast Attach 112 | . 1 . 1 7 . . . . . 6 4 2 . 7 1 1 1 5 . 10 15 30 8 13 Attach 100 | . 1 2 6 2 2 1 3 . 4 2 4 . . 1 4 2 1 1 6 18 12 11 8 9 Detach 5 | . 1 . . . . . . . . . . . . . . . . . . . . 3 . 1 Swap 115 | . 3 . 4 4 2 2 1 . 5 8 14 2 . 8 3 1 3 . 2 5 22 12 5 9 Drop 249 | . 9 . 7 19 2 2 . . 3 17 12 9 . 6 4 2 2 6 . 25 35 52 9 28 Fire 856 | . 29 1 31 39 . 9 25 . 15 40 58 19 9 32 65 7 15 . 30 73 81 98 70 110 Melee 37 | . . . . . . . . . . . 1 . . . . . . . . . 16 17 . 3 Ram . | . . . . . . . . . . . . . . . . . . . . . . . . . Kick 6 | . . . . . . . . . . . . . . . . . . . . 6 . . . . Crush . | . . . . . . . . . . . . . . . . . . . . . . . . . Escape Stasis 8 | . . . . . . . . . . . . . . 8 . . . . . . . . . . Rewire 24 | . . . . . . . . . . . 24 . . . . . . . . . . . . . Trap . | . . . . . . . . . . . . . . . . . . . . . . . . . Miscellaneous . | . . . . . . . . . . . . . . . . . . . . . . . . . Route ------- -11/Scrapyard -10/Materials (discovered 3 exits: *Mat x2 / [*Min]) -10/Mines (discovered 2 exits: *Mat x2) -9/Materials (discovered 2 exits: *Mat / [*Min]) -8/Materials (discovered 2 exits: *Fac / Sto) -7/Factory (discovered 6 exits: *Fac x4 / *Low x2) -7/Lower Caves -7/Lower Caves -7/Data Miner -6/Proximity Caves -6/Factory -6/Extension (discovered 2 exits: *Fac / *Cet) -6/Cetus (discovered 2 exits: *Fac / *Arc) -6/Archives -6/Hub_04(d) (discovered 4 exits: *Fac x4) -5/Factory (discovered 2 exits: *Upp x2) -5/Upper Caves -5/Upper Caves -5/Zhirov -4/Proximity Caves -4/Factory (discovered 4 exits: *Res x4) -3/Research (discovered 2 exits: *Qua x2) -3/Quarantine -2/Research -1/Access Tau Ceti IV Orbit History --------- Turn | Location | Event 1 | -11/Scrapyard | Discovered new exit (range 0) 1 | -11/Scrapyard | Entered Materials 69 | -10/Materials | Discovered new exit (range 6) 264 | -10/Materials | Discovered new exit (range 14) 305 | -10/Materials | Build established: Mutant 333 | -10/Materials | Discovered new exit (range 13) 459 | -10/Materials | Entered Mines 460 | -10/Mines | Assembled infested the area 481 | -10/Mines | Discovered new exit (range 8) 488 | -10/Mines | Discovered new exit (range 12) 492 | -10/Mines | Entered Materials 492 | -9/Materials | Evolved 2 slots: Propulsion x1, Utility x1 517 | -9/Materials | Lost 4 parts (1p2n1w) 551 | -9/Materials | Discovered new exit (range 13) 817 | -9/Materials | Discovered new exit (range 11) 915 | -9/Materials | Entered another Materials area 915 | -8/Materials | Evolved 2 slots: Utility x2 965 | -8/Materials | Build established: Hacker-Mutant 1089 | -8/Materials | Identified exit to Storage 1380 | -8/Materials | Build established: Mutant 1455 | -8/Materials | Discovered new exit (range 11) 1507 | -8/Materials | Entered Factory 1507 | -7/Factory | Evolved 2 slots: Utility x2 1618 | -7/Factory | Discovered new exit (range 4) 1622 | -7/Factory | Identified exit to Factory 1790 | -7/Factory | Identified exit to Lower Caves 1810 | -7/Factory | Entered Lower Caves 1831 | -7/Lower Caves | Build established: Skirmisher 1889 | -7/Lower Caves | Learned Research trap positions 1889 | -7/Lower Caves | Learned Factory security intel 1889 | -7/Lower Caves | Learned Factory terminal intel 1889 | -7/Lower Caves | Learned Armory terminal intel 2121 | -7/Lower Caves | Learned Factory interactive machine intel 2568 | -7/Lower Caves | Discovered new exit (range 17) 2592 | -7/Lower Caves | Identified exit to Lower Caves 2718 | -7/Lower Caves | Entered another Lower Caves area 3093 | -7/Lower Caves | Attracted the attention of an 0b10 checkpoint 3198 | -7/Lower Caves | Discovered new exit (range 7) 3204 | -7/Lower Caves | Identified exit to Data Miner 3205 | -7/Lower Caves | Build established: Mutant 3205 | -7/Lower Caves | Entered Data Miner 3205 | -7/Data Miner | Discovered new exit (range 6) 3228 | -7/Data Miner | Met Data Miner 3254 | -7/Data Miner | Learned location of Section 7 (-2) 3254 | -7/Data Miner | Acquired the access code to Warlord's prototype stash 3281 | -7/Data Miner | Received God Mode back door access code from Data Miner 3309 | -7/Data Miner | Identified exit to Proximity Caves 3311 | -7/Data Miner | Entered Proximity Caves 3375 | -6/Proximity Caves | Escorted by Enhanced Grunt 3490 | -6/Proximity Caves | Lost 3 parts (1p1n1u) 3494 | -6/Proximity Caves | Learned location of Zion (-6) 3781 | -6/Proximity Caves | Learned location of 1 exit from Factory 4024 | -6/Proximity Caves | Discovered exit to Factory (range 15) 4045 | -6/Proximity Caves | Attracted the attention of an 0b10 checkpoint 4050 | -6/Proximity Caves | Entered Factory 4050 | -6/Factory | Evolved 2 slots: Propulsion x1, Utility x1 4051 | -6/Factory | Identified exit to Extension 4053 | -6/Factory | Loaded intel: 52 interactive machine locations 4054 | -6/Factory | Loaded intel: 26 terminal locations 4980 | -6/Factory | Entered Extension 5023 | -6/Extension | Rescued a captive Derelict 5024 | -6/Extension | Rescued a captive Derelict 5406 | -6/Extension | Spotted B-75 Beast 5415 | -6/Extension | Rescued a captive Derelict 5422 | -6/Extension | Spotted B-75 Beast 5516 | -6/Extension | Destroyed B-75 Beast 5544 | -6/Extension | Build established: Scavenger-Mutant 5575 | -6/Extension | Destroyed B-75 Beast 5655 | -6/Extension | Rescued a captive Derelict 5714 | -6/Extension | Rescued a captive Derelict 5751 | -6/Extension | Rescued a captive Derelict 5781 | -6/Extension | Rescued A7 5842 | -6/Extension | Rescued a captive Derelict 5882 | -6/Extension | Rescued a captive Derelict 5900 | -6/Extension | Discovered new exit (range 10) 5901 | -6/Extension | Discovered new exit (range 6) 5924 | -6/Extension | Entered Cetus 5924 | -6/Cetus | Accompanied by 6 allies (A7) 5929 | -6/Cetus | Acquired a Cetus Manufacturing Module code from A7 5935 | -6/Cetus | Spotted Cetus Guard 5936 | -6/Cetus | Spotted Cetus Guard 5940 | -6/Cetus | Spotted Cetus Guard 5945 | -6/Cetus | Spotted Cetus Guard 5946 | -6/Cetus | Allies destroyed Cetus Guard 5960 | -6/Cetus | Allies destroyed Cetus Guard 5961 | -6/Cetus | Allies destroyed Cetus Guard 5969 | -6/Cetus | Allies destroyed Cetus Guard 6015 | -6/Cetus | Started Cetus Manufacturing Module 6040 | -6/Cetus | Manufactured an Enhanced Grunt 6045 | -6/Cetus | Cetus Manufacturing Module disabled 6081 | -6/Cetus | Discovered new exit (range 22) 6104 | -6/Cetus | Spotted Cetus Guard 6105 | -6/Cetus | Spotted Cetus Guard 6108 | -6/Cetus | Spotted Cetus Guard 6115 | -6/Cetus | Allies destroyed Cetus Guard 6115 | -6/Cetus | Spotted Cetus Guard 6128 | -6/Cetus | Destroyed Cetus Guard 6132 | -6/Cetus | Destroyed Cetus Guard 6134 | -6/Cetus | Allies destroyed Cetus Guard 6134 | -6/Cetus | Discovered new exit (range 22) 6149 | -6/Cetus | Met Revision 17 6235 | -6/Cetus | Entered Archives 6235 | -6/Archives | Accompanied by 3 allies (A7) 6271 | -6/Archives | Discovered new exit (range 22) 6277 | -6/Archives | Unable to access archive contents 6306 | -6/Archives | Entered Hub_04(d) 6306 | -6/Hub_04(d) | Accompanied by 1 ally 6331 | -6/Hub_04(d) | Found Prototype Device 6331 | -6/Hub_04(d) | Identified Exp. Thermal Shield 6444 | -6/Hub_04(d) | Garrison activated, responded to threat 6476 | -6/Hub_04(d) | Identified exit to Factory 6679 | -6/Hub_04(d) | System corruption reached 10% 6687 | -6/Hub_04(d) | Network Hub disabled 6704 | -6/Hub_04(d) | Entered Factory 6704 | -5/Factory | Evolved 2 slots: Utility x1, Weapon x1 6890 | -5/Factory | Identified exit to Upper Caves 6976 | -5/Factory | Build established: Scavenger-Gunner 7502 | -5/Factory | Crushed by falling debris 7542 | -5/Factory | Entered Upper Caves 7688 | -5/Upper Caves | Spotted B-75 Beast 7711 | -5/Upper Caves | Destroyed B-75 Beast 8071 | -5/Upper Caves | Discovered new exit (range 10) 8101 | -5/Upper Caves | Entered another Upper Caves area 8109 | -5/Upper Caves | Learned Factory terminal intel 8194 | -5/Upper Caves | Attracted the attention of an 0b10 checkpoint 8783 | -5/Upper Caves | Discovered new exit (range 12) 8825 | -5/Upper Caves | Entered Zhirov 8825 | -5/Zhirov | Discovered new exit (range 3) 8847 | -5/Zhirov | Met Zhirov 8868 | -5/Zhirov | Zhirov requested help retrieving the SGEMP Prototype 8899 | -5/Zhirov | Learned location of Quarantine (-3) 8899 | -5/Zhirov | Learned location of Testing (-2) 8899 | -5/Zhirov | Learned location of Command (-1) 8930 | -5/Zhirov | Found Alien Artifact 8930 | -5/Zhirov | Identified Integrated Dissipator 8930 | -5/Zhirov | Installed Integrated Dissipator, increased core heat dissipation (+20) 8946 | -5/Zhirov | Found Alien Artifact 9042 | -5/Zhirov | Entered Proximity Caves 9118 | -4/Proximity Caves | Attracted the attention of an 0b10 checkpoint 9411 | -4/Proximity Caves | Lost 5 parts (2n1u2w) 9523 | -4/Proximity Caves | Discovered new exit (range 13) 9541 | -4/Proximity Caves | Entered Factory 9541 | -4/Factory | Evolved 2 slots: Power x1, Utility x1 9542 | -4/Factory | Loaded intel: 26 terminal locations 9704 | -4/Factory | Identified exit to Research 11221 | -4/Factory | Lost 3 parts (1n1u1w) 11273 | -4/Factory | System corruption reached 10% 11293 | -4/Factory | Entered Research 11293 | -3/Research | Evolved 2 slots: Propulsion x2 11294 | -3/Research | Loaded intel: 92 trap records 11300 | -3/Research | Lost 6 parts (3n1u2w) 11407 | -3/Research | Lost 4 parts (1p1n1u1w) 12024 | -3/Research | Cargo convoy interrupted 12299 | -3/Research | Identified exit to Quarantine 13410 | -3/Research | Entered Quarantine 13585 | -3/Quarantine | Found Alien Energy Cannon 13603 | -3/Quarantine | Identified Core Cannon 13694 | -3/Quarantine | Cryocooling Duct disabled 13709 | -3/Quarantine | Ambient heat levels rising (+20) 13709 | -3/Quarantine | Non-combat units ordered to evacuate 13774 | -3/Quarantine | System corruption reached 10% 13816 | -3/Quarantine | Found Alien Slashing Weapon 13856 | -3/Quarantine | Spotted Alpha 7 13907 | -3/Quarantine | Destroyed Alpha 7 13918 | -3/Quarantine | Found Prototype Ballistic Gun 13919 | -3/Quarantine | Identified Multirail 13925 | -3/Quarantine | Found Prototype Device 13925 | -3/Quarantine | Identified Exp. ECM Suite 13935 | -3/Quarantine | Lost 6 parts (1p4n1u) 13945 | -3/Quarantine | Found Alien Launcher 14032 | -3/Quarantine | Incoming investigation squad redirected 14255 | -3/Quarantine | Found Alien Reactor 14260 | -3/Quarantine | Identified Matter Drive 14411 | -3/Quarantine | Found Alien Artifact 14413 | -3/Quarantine | Identified Phase Armor 14539 | -3/Quarantine | Found Alien Artifact 14539 | -3/Quarantine | Identified Subatomic Replicator 14568 | -3/Quarantine | Found Alien Impact Weapon 14568 | -3/Quarantine | Identified Core Stripper 14629 | -3/Quarantine | Discovered new exit (range 20) 14755 | -3/Quarantine | Identified exit to Research 14850 | -3/Quarantine | Destroyed 7 combat bots 14870 | -3/Quarantine | Found Alien Artifact 14870 | -3/Quarantine | Identified Phase Redirector 15181 | -3/Quarantine | Found Exp. Thermal Shield 15192 | -3/Quarantine | Met incapacitated Sigix Warrior 15192 | -3/Quarantine | Lockdown squad dispatched 15196 | -3/Quarantine | Acquired the access code to the Sigix quarantine chamber 15199 | -3/Quarantine | Unlocked Sigix quarantine chamber 15238 | -3/Quarantine | Spotted Lightning 15243 | -3/Quarantine | Spotted Lightning 15243 | -3/Quarantine | Spotted Lightning 15265 | -3/Quarantine | Destroyed Lightning 15269 | -3/Quarantine | System corruption reached 30% 15287 | -3/Quarantine | Destroyed Lightning 15301 | -3/Quarantine | Destroyed Lightning 15311 | -3/Quarantine | Found Prototype Energy Cannon 15311 | -3/Quarantine | Identified EMDS 15331 | -3/Quarantine | Found Prototype Device 15331 | -3/Quarantine | Identified Exp. Phase Shifter 15337 | -3/Quarantine | Found Prototype Device 15337 | -3/Quarantine | Identified Exp. EM Disruption Field 15349 | -3/Quarantine | Found Exp. Targeting Computer 15452 | -3/Quarantine | Found Alien Artifact 15492 | -3/Quarantine | Entered Research 15492 | -2/Research | Evolved 2 slots: Utility x2 15542 | -2/Research | Found Prototype Processor 15543 | -2/Research | Identified Exp. Core Analyzer 15649 | -2/Research | Found Prototype Device 15650 | -2/Research | Identified Femtoactuators 15770 | -2/Research | Lost 9 parts (1p3n4u1w) 15784 | -2/Research | Destroyed 14 combat bots 16030 | -2/Research | Garrison activated, responded to threat 16261 | -2/Research | Discovered new exit (range 8) 16279 | -2/Research | Entered Access 16279 | -1/Access | Evolved 2 slots: Utility x2 17056 | -1/Access | First assault squad dispatched 17064 | -1/Access | Identified exit to Surface 17078 | -1/Access | Incoming assault squad redirected 17092 | -1/Access | Identified Sigix Broadsword 17174 | -1/Access | Destroyed 9 combat bots 17733 | -1/Access | Spotted B-99 Colossus 18114 | -1/Access | Used Subatomic Replicator to replicate Sigix Containment Pod 18142 | -1/Access | Identified Core Reset Matrix 18142 | -1/Access | Identified Sigix Terminator 18142 | -1/Access | Used Core Reset Matrix 18146 | *** | Destroyed 0B10! Last Messages --------------- 18102_ Dropped Phase Gun. 18103_ Dropped Sigix Containment Pod. 18113_ Slug penetrates Reinforced Barrier. 18114_ Replicated Sigix Containment Pod. 18115_ Acquired Sigix Containment Pod. 18116_ Penetrated by Slug. 18119_ Acquired Sigix Containment Pod. 18120_ Dropped Phase Gun. 18130_ Penetrated by Slug. 18131_ Main Access Shell breached. 18135_ Penetrated by Slug. 18135_ Med. Reflective Plating destroyed. 18135_ Slug penetrates Main Access Shell. 18140_ Penetrated by Slug. 18140_ Slug penetrates Main Access Shell. 18142_ Identified Core Reset Matrix. 18142_ Wiping memory... 18143_ CORE RESET 18143_ Slug penetrates Main Access Shell. [Achievement: True Cogmind] Map ----- +----------------------------------------------------+ | ?????????????????????????????????????????????????? | | ?????????????????????????????????????????????????? | | ?????????????????????????????????????????????????? | | ?????????????????????????????????????????????????? | | ?????????????????????????????????????????????????? | | ?????????????????????????????????????????????????? | | ?????????????????????????????????????????????????? | | ?????????????????????????????????????????????????? | | ?????????????????????????????????????????????????? | | ?????????????????????????????????????????????????? | | ?????????????????????????????????????????????????? | | ?????????????????????????????????????????????????? | | ?????????????????????????????????????????????????? | | ?????????????????????????????????????????????????? | | ?????????????????????????????????????????????????? | | ?????????????????????????????????????????????????? | | ?????????????????????????????????????????????????? | | ?????????????????????????????????????????????????? | | ?????????????????????????????????????????????????? | | ?????????????????????????????????????????????????? | | ????????????????????#####????????????????????????? | | ????????????????????? ????????????????????????? | | ?????????????????????? [????????????????????????? | | ??????????????????????""Y"""?????????????????????? | | ??????????????????????" "?????????????????????? | | ??????????????????????" "@ "?????????????????????? | | ??????????????????????" "" "?????????????????????? | | ??????????????????????" "?????????????????????? | | ??????????????????????""""""?????????????????????? | | ?????????????????????????????????????????????????? | | ?????????????????????????????????????????????????? | | ?????????????????????????????????????????????????? | | ?????????????????????????????????????????????????? | | ?????????????????????????????????????????????????? | | ?????????????????????????????????????????????????? | | ?????????????????????????????????????????????????? | | ?????????????????????????????????????????????????? | | ?????????????????????????????????????????????????? | | ?????????????????????????????????????????????????? | | ?????????????????????????????????????????????????? | | ?????????????????????????????????????????????????? | | ?????????????????????????????????????????????????? | | ?????????????????????????????????????????????????? | | ?????????????????????????????????????????????????? | | ?????????????????????????????????????????????????? | | ?????????????????????????????????????????????????? | | ?????????????????????????????????????????????????? | | ?????????????????????????????????????????????????? | | ?????????????????????????????????????????????????? | | ?????????????????????????????????????????????????? | +----------------------------------------------------+ Best States ------------- Heat Dissipation 129 Coolant Potential 100 Energy Generation 43 Energy Capacity 1055 Matter Stores 300 Matter Capacity 300 Sight Range 23 Robot Scan Range 16 Terrain Scan Density 10 Jamming Range 16 Additional Mass Support 9 EM Shielding 2 Corruption Containment 8 Corruption Block 20 Armor Coverage 450 Resistance: KI 50 Resistance: TH 50 Resistance: EX 20 Resistance: EM 95 Resistance: I 20 Resistance: S 20 Resistance: P 20 Core Shielding 30 Propulsion Shielding 90 Weapon Cycling 20 Melee Speed Boost 50 Phase Shifting 20 Evasion (%) 70 Targeting Accuracy 12 Melee Accuracy 8 Target Analysis 8 Armor Integrity Analysis 30 Recoil Reduction 1 Particle Charging 25 Offensive Hacking 24 Defensive Hacking 12 Item Schematics ----------------- None Robot Schematics ------------------ None Fabricated ------------ Nothing Alien Tech Used ----------------- Integrated Dissipator Core Cannon Matter Drive Phase Armor Subatomic Replicator Core Stripper Phase Redirector Sigix Broadsword Core Reset Matrix Achievements -------------- True Cogmind Challenges ------------ None Game ------ Seed CoordinationGrapheneCarapace Manual? 0 Play Time 02:54:55 Cumulative 181.2 hours Start 2022.03.22 @ 06:37:45 End 2022.03.22 @ 09:32:08 Sessions 1 Manual Loads 0 Difficulty Adventurer Special Mode None Game No. 171 Rogue 163 Adventurer 2 Explorer 6 Win Type 3 Total 25 Types 12/1/2/8/1/0/0/1/0 Lore% 61 Gallery% 76 Achievement% 66 Wizard Run 0 Options --------- ASCII 0 Keyboard 0 Movement Mouse Keybinds 0 Fullscreen 2 Font 24/Smallcaps Map View 76x50 Tactical HUD 1 Map Filters NONE Filters NONE Steam 1 RUN: 59b53bf3-8142-4f9b-bde3-5dad541ffe73